bitfinex-derivatives/quotes_BTCF0:USTF0_20250127
["timestamp","ask_amount","ask_price","bid_price","bid_amount"]
[1737991991762,0.23250153,101670.0,101660.0,2.057524]
[1737991993153,0.00014702,101680.0,101670.0,0.196705]
[1737991993466,0.19814717,101690.0,101680.0,0.196685]
[1737991994065,0.19814717,101690.0,101680.0,1.696685]
[1737991994260,0.55894717,101690.0,101680.0,1.696685]
[1737991994461,0.19814717,101690.0,101680.0,0.196685]
[1737991994661,0.55894717,101690.0,101680.0,0.196685]
[1737991994861,0.55894717,101690.0,101680.0,1.696685]
[1737991995061,0.36227617,101690.0,101670.0,0.00014702]
[1737991995264,0.557485,101680.0,101670.0,0.00014702]
[1737991995664,0.196724,101660.0,101650.0,0.6907365]
[1737991995861,0.557524,101660.0,101650.0,0.4939965]
[1737991996065,0.557524,101660.0,101640.0,0.19676]
[1737991996066,0.196743,101650.0,101640.0,0.19676]
[1737991996267,0.557543,101650.0,101640.0,0.19676]
[1737991996776,0.557543,101650.0,101640.0,0.20537214]
[1737991996959,0.557543,101650.0,101640.0,0.00861214]
[1737991997166,0.3608,101650.0,101630.0,0.19692002]
[1737991997365,0.557563,101640.0,101630.0,1.50014702]
[1737991998573,0.557563,101640.0,101630.0,1.69692902]
[1737991998865,0.557547,101650.0,101630.0,1.50014702]
[1737991999078,0.00014702,101660.0,101650.0,0.196743]
[1737991999275,0.3608,101670.0,101660.0,0.196724]
[1737991999570,0.55894717,101690.0,101680.0,0.196685]
[1737991999765,0.3608,101690.0,101680.0,1.696685]
[1737991999972,0.4382,101700.0,101690.0,0.196666]
[1737992000269,0.3608,101710.0,101700.0,0.196647]
[1737992000463,0.36094702,101710.0,101680.0,0.00014702]
[1737992000665,0.557461,101700.0,101690.0,0.19666]
[1737992000971,0.196661,101700.0,101690.0,0.19666]
[1737992001170,0.196661,101700.0,101690.0,1.69666]
[1737992001777,0.557461,101700.0,101690.0,1.69666]
[1737992001970,0.196661,101700.0,101690.0,1.69666]
[1737992002368,0.557461,101700.0,101690.0,1.69666]
[1737992002669,0.196661,101700.0,101690.0,1.69666]
[1737992002865,0.557461,101700.0,101690.0,1.69666]
[1737992003068,0.45154925,101710.0,101690.0,1.5]
[1737992003272,0.196647,101700.0,101690.0,1.696662]
[1737992003780,0.557447,101700.0,101690.0,1.696662]
[1737992005086,0.196647,101700.0,101690.0,1.696662]
[1737992005272,0.55758002,101710.0,101700.0,0.196647]
[1737992006768,0.00014702,101710.0,101700.0,0.557447]
[1737992007170,0.55757402,101710.0,101700.0,0.196647]
[1737992007371,0.196647,101700.0,101690.0,1.696659]
[1737992007575,0.557447,101700.0,101690.0,0.196659]
[1737992007977,0.3608,101700.0,101680.0,0.00879566]
[1737992008169,0.3608,101700.0,101680.0,0.00014702]
[1737992008170,0.557466,101690.0,101680.0,0.00014702]
[1737992008371,0.639466,101690.0,101680.0,0.00014702]
[1737992008569,0.639466,101690.0,101680.0,0.19683202]
[1737992009670,0.278666,101690.0,101680.0,0.19683202]
[1737992009875,0.5243,101700.0,101690.0,0.196666]
[1737992009876,0.557449,101700.0,101690.0,0.196666]
[1737992010578,0.3608,101700.0,101690.0,1.696666]
[1737992010771,0.557447,101700.0,101690.0,1.696666]
[1737992011681,0.3608,101700.0,101690.0,1.696666]
[1737992011873,0.82023662,101710.0,101700.0,0.196647]
[1737992013181,0.26280562,101710.0,101700.0,0.196647]
[1737992013768,0.26280562,101710.0,101700.0,0.557447]
[1737992013975,0.32146478,101730.0,101700.0,0.6608]
[1737992014279,0.19802925,101750.0,101740.0,0.196569]
[1737992014778,0.55882925,101750.0,101740.0,0.196569]
[1737992014976,0.60796225,101750.0,101740.0,1.5]
[1737992015171,0.55882525,101750.0,101740.0,1.5]
[1737992015372,0.196569,101740.0,101730.0,0.00014702]
[1737992015677,0.557369,101740.0,101730.0,0.00014702]
[1737992015877,0.557369,101740.0,101730.0,0.19673602]
[1737992016684,0.557369,101740.0,101730.0,0.20564351]
[1737992017380,0.557369,101740.0,101730.0,1.70564351]
[1737992017574,0.557369,101740.0,101730.0,1.50905451]
[1737992017987,0.557369,101740.0,101730.0,1.70564351]
[1737992018176,0.557369,101740.0,101730.0,1.50905451]
[1737992018578,0.557369,101740.0,101730.0,0.20564351]
[1737992019487,0.557369,101740.0,101730.0,0.00905451]
[1737992020589,0.557369,101740.0,101730.0,0.00014702]
[1737992024593,0.68398776,101740.0,101730.0,0.00014702]
[1737992024986,0.557369,101740.0,101730.0,0.00014702]
[1737992025390,0.557369,101740.0,101730.0,0.19673602]
[1737992025689,0.3608,101750.0,101740.0,0.196569]
[1737992025993,0.19668402,101760.0,101750.0,0.19655]
[1737992026990,0.55748402,101760.0,101750.0,0.19655]
[1737992027189,0.19668402,101760.0,101750.0,0.19655]
[1737992028004,0.55748402,101760.0,101750.0,0.19655]
[1737992028306,0.19668402,101760.0,101750.0,0.19655]
[1737992029398,0.55748402,101760.0,101750.0,0.19655]
[1737992029811,0.19668402,101760.0,101750.0,0.19655]
[1737992030406,0.55748402,101760.0,101750.0,0.19655]
[1737992030705,0.55748402,101760.0,101750.0,1.69655]
[1737992030905,0.19668402,101760.0,101750.0,1.70588689]
[1737992032994,0.55748402,101760.0,101750.0,1.70588689]
[1737992033198,0.19668402,101760.0,101750.0,1.70588689]
[1737992034504,0.409928,101770.0,101760.0,0.196531]
[1737992034505,0.196514,101770.0,101760.0,0.196531]
[1737992035295,0.196531,101760.0,101750.0,1.70587589]
[1737992035501,0.557331,101760.0,101750.0,0.00933689]
[1737992035709,0.557331,101760.0,101750.0,0.19655]
[1737992036204,0.557331,101760.0,101750.0,0.32316876]
[1737992036600,0.196531,101760.0,101750.0,0.19655]
[1737992039304,0.55746102,101770.0,101760.0,0.196531]
[1737992039508,0.63765557,101790.0,101780.0,0.196492]
[1737992039703,0.00147457,101790.0,101780.0,0.32311076]
[1737992040009,0.657257,101800.0,101790.0,0.196473]
[1737992040510,0.657257,101800.0,101790.0,0.68389176]
[1737992040511,0.1,101800.0,101790.0,0.68389176]
[1737992041302,0.09065404,101810.0,101790.0,0.68389176]
[1737992041613,0.06951,101810.0,101800.0,0.68387176]
[1737992042004,0.06951,101810.0,101800.0,0.557253]
[1737992042207,0.265944,101810.0,101800.0,0.196453]
[1737992042413,0.06951,101810.0,101800.0,0.32307176]
[1737992042710,0.06951,101810.0,101800.0,0.196453]
[1737992043412,0.196453,101800.0,101790.0,0.681225]
[1737992043610,0.196473,101790.0,101780.0,0.00082702]
[1737992043915,0.196511,101770.0,101760.0,0.00147388]
[1737992044100,1.04472976,101770.0,101760.0,0.00147388]
[1737992044305,0.918111,101770.0,101760.0,0.00147388]
[1737992044503,0.999811,101770.0,101760.0,0.00147388]
[1737992045003,0.999811,101770.0,101760.0,0.19800488]
[1737992045608,0.999811,101770.0,101760.0,0.01038435]
[1737992045807,0.999811,101770.0,101760.0,0.20691535]
[1737992046915,0.999811,101770.0,101760.0,0.01038435]
[1737992047308,0.999811,101770.0,101760.0,3.5e-07]
[1737992047617,0.196608,101720.0,101710.0,0.00786]
[1737992047818,1.04482676,101720.0,101710.0,0.00786]
[1737992050527,1.14145514,101720.0,101710.0,0.00786]
[1737992050727,1.22175514,101720.0,101710.0,0.00786]
[1737992051324,0.196627,101710.0,101700.0,0.1090338]
[1737992051624,0.557427,101710.0,101700.0,0.1090338]
[1737992052723,0.196627,101710.0,101700.0,0.1090338]
[1737992052923,0.4192879,101730.0,101720.0,0.196608]
[1737992052924,0.00014702,101730.0,101720.0,0.196608]
[1737992053225,0.557375,101740.0,101730.0,0.196589]
[1737992053426,0.58404714,101740.0,101700.0,0.1090338]
[1737992053625,0.196627,101710.0,101700.0,0.30552078]
[1737992053835,0.557427,101710.0,101700.0,0.10888678]
[1737992054814,0.557427,101710.0,101700.0,0.1]
[1737992055030,0.6608,101710.0,101690.0,0.00014702]
[1737992055221,0.6608,101710.0,101670.0,0.00147509]
[1737992055222,0.196685,101680.0,101670.0,0.00147509]
[1737992055527,0.918285,101680.0,101670.0,0.00147509]
[1737992055924,0.918285,101680.0,101670.0,0.00933509]
[1737992056225,0.918285,101680.0,101630.0,0.19824976]
[1737992056226,0.04918,101670.0,101630.0,0.19824976]
[1737992056428,0.408985,101670.0,101660.0,2e-08]
[1737992056622,1.130585,101670.0,101660.0,2e-08]
[1737992057026,1.35383214,101670.0,101660.0,2e-08]
[1737992058930,0.196743,101650.0,101630.0,1.50147576]
[1737992059230,0.918363,101640.0,101630.0,1.50147576]
[1737992059932,0.557533,101660.0,101640.0,0.196763]
[1737992060135,0.36094702,101650.0,101640.0,0.196763]
[1737992060523,0.36094702,101650.0,101640.0,1.696763]
[1737992060922,0.00014702,101650.0,101640.0,2.28081014]
[1737992061430,0.00014702,101650.0,101640.0,1.5]
[1737992061431,0.55769002,101650.0,101640.0,1.5]
[1737992061738,0.196763,101640.0,101630.0,0.00147576]
[1737992061939,0.638463,101640.0,101630.0,0.19825776]
[1737992062141,0.638463,101640.0,101630.0,1.50147576]
[1737992062430,0.638463,101640.0,101630.0,0.00147576]
[1737992064227,0.71107916,101650.0,101640.0,0.196763]
[1737992064228,0.55769302,101650.0,101640.0,0.196763]
[1737992065135,0.196763,101640.0,101630.0,0.00147576]
[1737992065432,0.634163,101640.0,101630.0,0.00147576]
[1737992066142,0.634163,101640.0,101630.0,0.19825776]
[1737992066334,0.0766,101640.0,101630.0,0.19825776]
[1737992066535,0.55769602,101650.0,101640.0,0.196763]
[1737992067842,0.00014702,101650.0,101640.0,0.196763]
[1737992068342,0.36094702,101650.0,101640.0,1.696763]
[1737992069937,0.55769002,101650.0,101640.0,1.696763]
[1737992070937,0.00014702,101650.0,101640.0,1.696763]
[1737992071132,0.3608,101660.0,101640.0,1.72324714]
[1737992071441,0.557527,101660.0,101650.0,0.196743]
[1737992071642,0.918327,101660.0,101650.0,0.196743]
[1737992072440,0.3608,101660.0,101650.0,0.196743]
[1737992072641,0.58716524,101670.0,101640.0,2.30211305]
[1737992072839,0.58716524,101670.0,101660.0,0.196724]
[1737992073843,0.196734,101660.0,101650.0,0.196738]
[1737992074039,0.557534,101660.0,101650.0,0.196738]
[1737992074248,0.196743,101650.0,101640.0,0.20412791]
[1737992074445,0.557543,101650.0,101640.0,0.20412791]
[1737992075330,0.3608,101650.0,101640.0,0.42737505]
[1737992075941,0.557543,101650.0,101640.0,0.20412791]
[1737992078742,0.641879,101690.0,101680.0,0.196685]
[1737992078947,0.3608,101690.0,101680.0,0.196685]
[1737992079244,0.196692,101680.0,101670.0,0.196701]
[1737992079443,0.196715,101670.0,101660.0,0.196718]
[1737992079833,0.196715,101670.0,101660.0,1.696718]
[1737992080149,0.55763902,101680.0,101670.0,0.196705]
[1737992080742,0.36094702,101680.0,101670.0,0.196705]
[1737992080935,0.55763202,101680.0,101670.0,0.196705]
[1737992082245,0.36094702,101680.0,101670.0,0.196705]
[1737992082833,0.55763202,101680.0,101670.0,0.196705]
[1737992083033,0.36094702,101680.0,101650.0,0.00014702]
[1737992083234,1.04508368,101660.0,101650.0,0.00014702]
[1737992083742,0.196763,101640.0,101630.0,0.23543666]
[1737992083945,0.918363,101640.0,101630.0,0.43221866]
[1737992085349,0.918363,101640.0,101630.0,0.43795008]
[1737992086239,0.55769802,101650.0,101630.0,0.24116808]
[1737992086436,0.55769802,101650.0,101640.0,0.196763]
[1737992086644,0.00014702,101650.0,101640.0,0.557563]
[1737992086849,0.557494,101680.0,101670.0,0.196705]
[1737992087143,0.3608,101680.0,101670.0,0.196705]
[1737992087342,0.557485,101680.0,101670.0,0.196705]
[1737992087536,0.196715,101670.0,101660.0,0.196721]
[1737992087743,0.557515,101670.0,101660.0,0.196721]
[1737992088337,0.196724,101660.0,101650.0,0.19688702]
[1737992088539,0.557524,101660.0,101650.0,0.00014702]
[1737992088746,0.635224,101660.0,101650.0,0.00014702]
[1737992089852,0.635224,101660.0,101650.0,0.19689002]
[1737992090348,0.635224,101660.0,101650.0,1.69689002]
[1737992090542,0.635224,101660.0,101650.0,1.50014702]
[1737992090744,0.635224,101660.0,101650.0,0.00014702]
[1737992090943,0.716524,101660.0,101650.0,0.00014702]
[1737992093645,0.635224,101660.0,101650.0,0.19689002]
[1737992093849,0.274424,101660.0,101650.0,0.19689002]
[1737992094747,0.0777,101660.0,101650.0,0.19689002]
[1737992094947,0.557514,101670.0,101660.0,0.196724]
[1737992095346,0.3608,101670.0,101660.0,0.196724]
[1737992095657,0.36094702,101680.0,101670.0,0.196705]
[1737992095840,0.55763202,101680.0,101670.0,0.196705]
[1737992096441,0.196705,101670.0,101660.0,1.696719]
[1737992097042,0.55764602,101680.0,101670.0,0.196705]
[1737992097551,0.18150521,101700.0,101670.0,1.0216]
[1737992097552,0.0817,101700.0,101670.0,1.0216]
[1737992097750,0.0803,101720.0,101710.0,0.196627]
[1737992097942,0.17232057,101730.0,101720.0,0.196608]
[1737992098154,0.1226178,101760.0,101720.0,0.58430283]
[1737992098353,0.081,101770.0,101760.0,0.196531]
[1737992098553,0.4566027,101780.0,101770.0,0.196511]
[1737992098753,0.4566027,101780.0,101770.0,0.78081383]
[1737992098754,0.04731269,101780.0,101770.0,0.78081383]
[1737992098952,0.23637769,101800.0,101790.0,0.196473]
[1737992099256,0.18543325,101800.0,101790.0,2.64157583]
[1737992099447,0.18543325,101800.0,101790.0,1.91997583]
[1737992099645,0.18543325,101800.0,101790.0,2.28077583]
[1737992100349,0.74268625,101800.0,101790.0,0.22350283]
[1737992100548,0.196473,101790.0,101780.0,0.00014702]
[1737992100754,0.721273,101790.0,101780.0,0.00014702]
[1737992100957,0.3608,101790.0,101780.0,0.19663902]
[1737992102757,0.60631156,101800.0,101790.0,0.196473]
[1737992103349,0.60631156,101800.0,101780.0,0.00014702]
[1737992103555,0.40985556,101800.0,101790.0,0.22350283]
[1737992103752,0.04905556,101800.0,101790.0,0.78077583]
[1737992104251,0.04905556,101800.0,101790.0,0.41997583]
[1737992104449,0.24550856,101800.0,101790.0,0.41997583]
[1737992104660,0.24550856,101800.0,101780.0,0.19662502]
[1737992104661,0.60630856,101800.0,101780.0,0.19662502]
[1737992104855,0.60630856,101800.0,101780.0,0.00014702]
[1737992105057,0.196473,101790.0,101780.0,0.19663602]
[1737992105457,0.557273,101790.0,101780.0,0.19663602]
[1737992105855,0.557273,101790.0,101780.0,0.00014702]
[1737992106051,0.3622743,101830.0,101780.0,0.66094702]
[1737992106370,0.0014743,101830.0,101820.0,0.41991783]
[1737992106661,0.0014743,101830.0,101820.0,0.196415]
[1737992107359,0.0014743,101830.0,101820.0,2.057215]
[1737992107754,0.0014743,101830.0,101820.0,2.28071783]
[1737992107953,0.5973,101860.0,101820.0,2.08430283]
[1737992108150,0.557128,101870.0,101850.0,0.196357]
[1737992108760,0.3608,101860.0,101850.0,0.00014702]
[1737992109064,0.557152,101860.0,101850.0,0.00014702]
[1737992109253,0.196352,101860.0,101850.0,0.00014702]
[1737992109453,0.196352,101860.0,101850.0,0.19650402]
[1737992110656,0.557122,101870.0,101860.0,0.196338]
[1737992110861,0.3608,101870.0,101860.0,0.41984083]
[1737992111060,0.79876144,101890.0,101870.0,0.196318]
[1737992111758,0.00134739,101880.0,101870.0,0.196318]
[1737992111953,0.00134739,101880.0,101870.0,0.557118]
[1737992113362,0.00134739,101880.0,101870.0,0.196318]
[1737992113363,0.36214739,101880.0,101870.0,0.196318]
[1737992113668,0.196321,101870.0,101860.0,0.196329]
[1737992113856,0.00134739,101880.0,101860.0,0.58430283]
[1737992114167,0.00134739,101880.0,101870.0,0.557118]
[1737992114463,0.19764639,101880.0,101870.0,0.196318]
[1737992114857,0.196318,101870.0,101860.0,0.196335]
[1737992115160,0.196338,101860.0,101850.0,0.56314613]
[1737992115552,0.19764939,101880.0,101870.0,0.196318]
[1737992115864,0.00147344,101890.0,101880.0,0.196299]
[1737992116057,0.00147344,101890.0,101880.0,0.41980183]
[1737992116665,0.00147344,101890.0,101880.0,0.196299]
[1737992117160,0.19775344,101890.0,101880.0,0.196299]
[1737992117464,0.00147344,101890.0,101880.0,1.696299]
[1737992117766,0.00147344,101890.0,101880.0,2.057099]
[1737992117967,0.1,101900.0,101880.0,2.08430283]
[1737992118264,0.1,101900.0,101890.0,0.19628]
[1737992118459,0.296261,101900.0,101890.0,0.19628]
[1737992118660,0.19628,101890.0,101880.0,0.78058983]
[1737992118861,0.4608,101900.0,101880.0,0.78058983]
[1737992119054,0.4608,101900.0,101880.0,0.58999309]
[1737992119254,0.287055,101920.0,101910.0,0.196241]
[1737992119255,0.714725,101920.0,101910.0,0.196241]
[1737992119459,0.00147241,101940.0,101910.0,0.3608]
[1737992119665,0.00147241,101940.0,101930.0,0.196203]
[1737992119666,0.19765941,101940.0,101930.0,0.196203]
[1737992119965,0.55845941,101940.0,101930.0,0.196203]
[1737992120165,0.196203,101930.0,101920.0,0.41972183]
[1737992120356,0.196222,101920.0,101910.0,0.00014702]
[1737992120561,0.557022,101920.0,101910.0,0.00014702]
[1737992121260,0.196222,101920.0,101910.0,0.19638802]
[1737992121465,0.196211,101930.0,101920.0,0.196218]
[1737992121867,0.557011,101930.0,101920.0,0.196218]
[1737992122063,0.196211,101930.0,101920.0,0.196218]
[1737992122259,0.557011,101930.0,101920.0,0.196218]
[1737992122763,0.196211,101930.0,101920.0,0.196218]
[1737992122965,0.557011,101930.0,101920.0,0.196218]
[1737992124069,0.196222,101920.0,101910.0,0.19637402]
[1737992124265,0.557004,101930.0,101920.0,0.196222]
[1737992124663,0.196222,101920.0,101910.0,0.20221173]
[1737992125368,0.557022,101920.0,101910.0,0.20221173]
[1737992126561,0.557022,101920.0,101910.0,0.12241231]
[1737992126962,0.557022,101920.0,101910.0,0.12822605]
[1737992127170,0.557022,101920.0,101910.0,0.00581374]
[1737992127359,0.196241,101910.0,101900.0,1.5]
[1737992127566,0.196261,101900.0,101890.0,0.196278]
[1737992127768,0.557061,101900.0,101890.0,0.00014702]
[1737992128863,0.19628,101890.0,101880.0,1.30728558]
[1737992129061,0.049077,101880.0,101850.0,0.19782762]
[1737992129265,0.557135,101870.0,101860.0,0.22350283]
[1737992129471,0.557135,101870.0,101860.0,0.41984083]
[1737992129671,0.196338,101860.0,101850.0,0.20429588]
[1737992129970,0.549288,101860.0,101850.0,1.50794788]
[1737992130559,0.196357,101850.0,101840.0,0.17597695]
[1737992130766,0.196376,101840.0,101830.0,0.2585109]
[1737992130965,0.3608,101840.0,101820.0,0.65001491]
[1737992131172,0.557196,101830.0,101820.0,0.65786491]
[1737992131475,0.557196,101830.0,101820.0,0.87474531]
[1737992131672,0.557196,101830.0,101820.0,1.07116031]
[1737992132277,0.196396,101830.0,101820.0,1.07116031]
[1737992132478,0.196396,101830.0,101820.0,0.42776783]
[1737992132774,0.55732902,101840.0,101820.0,0.42774883]
[1737992133075,0.557196,101830.0,101820.0,0.41989883]
[1737992133662,0.55732802,101840.0,101830.0,0.196396]
[1737992133959,0.55732802,101840.0,101830.0,0.557196]
[1737992133960,0.00014702,101840.0,101830.0,0.557196]
[1737992134372,0.00147362,101860.0,101850.0,0.196357]
[1737992134669,0.00147362,101860.0,101850.0,0.78065983]
[1737992136871,0.3608,101900.0,101870.0,0.049079]
[1737992137165,0.55703,101920.0,101910.0,0.196241]
[1737992137373,0.3608,101930.0,101890.0,0.63336883]
[1737992137569,0.557006,101930.0,101920.0,0.196222]
[1737992137772,0.557006,101930.0,101920.0,0.11641967]
[1737992138475,0.557006,101930.0,101920.0,0.196222]
[1737992139473,0.196222,101920.0,101910.0,0.19638302]
[1737992139671,0.557022,101920.0,101910.0,0.19638302]
[1737992139977,0.557022,101920.0,101910.0,0.00014702]
[1737992140162,0.557022,101920.0,101910.0,0.19638802]
[1737992140363,0.3608,101920.0,101910.0,0.19638802]
[1737992140569,0.557022,101920.0,101910.0,1.69638802]
[1737992143268,0.557022,101920.0,101910.0,0.00014702]
[1737992144078,0.557022,101920.0,101910.0,0.19638802]
[1737992144293,0.3608,101920.0,101910.0,0.19638802]
[1737992144470,0.557015,101930.0,101910.0,0.00014702]
[1737992144780,0.557015,101930.0,101920.0,0.196222]
[1737992145278,0.5586077,101940.0,101930.0,0.196203]
[1737992145777,0.5586077,101940.0,101910.0,2.13350785]
[1737992145778,0.5586077,101940.0,101910.0,2.08444985]
[1737992145978,0.5586077,101940.0,101920.0,0.196213]
[1737992146478,0.196203,101930.0,101920.0,0.196213]
[1737992147174,0.557003,101930.0,101920.0,0.196213]
[1737992147479,0.3608,101930.0,101920.0,0.196213]
[1737992147677,0.1978087,101940.0,101930.0,0.196203]
[1737992147878,0.5586087,101940.0,101930.0,0.196203]
[1737992148073,0.196204,101930.0,101920.0,0.196216]
[1737992148279,0.5586107,101940.0,101930.0,0.196203]
[1737992149479,0.196206,101930.0,101920.0,0.196213]
[1737992149877,0.0016197,101940.0,101930.0,0.196203]
[1737992150582,0.5586037,101940.0,101930.0,0.196203]
[1737992150776,0.196203,101930.0,101920.0,0.557016]
[1737992151083,0.196203,101930.0,101920.0,0.196216]
[1737992151874,0.5586087,101940.0,101930.0,0.196203]
[1737992152479,0.5586087,101940.0,101930.0,1.696203]
[1737992152681,0.1978087,101940.0,101930.0,1.696203]
[1737992152877,0.1978087,101940.0,101930.0,0.196203]
[1737992153079,0.5586087,101940.0,101930.0,0.196203]
[1737992153277,0.1978087,101940.0,101930.0,0.196203]
[1737992153886,0.5586087,101940.0,101930.0,0.196203]
[1737992154388,0.1978087,101940.0,101930.0,0.196203]
[1737992154589,0.0016197,101940.0,101930.0,0.196203]
[1737992154776,0.5586037,101940.0,101930.0,0.196203]
[1737992154986,0.196215,101930.0,101920.0,0.196217]
[1737992155183,0.557015,101930.0,101920.0,0.196217]
[1737992155891,0.196222,101920.0,101910.0,0.00014702]
[1737992156087,0.354222,101920.0,101910.0,0.00014702]
[1737992156285,0.557012,101930.0,101920.0,0.196222]
[1737992156588,0.5586107,101940.0,101930.0,0.196203]
[1737992157494,0.5586107,101940.0,101930.0,1.696203]
[1737992157792,0.0016197,101940.0,101930.0,1.696203]
[1737992158189,0.1978037,101940.0,101930.0,1.696203]
[1737992158383,0.0016197,101940.0,101930.0,1.696203]
[1737992159686,0.1978037,101940.0,101930.0,1.696203]
[1737992160088,0.196213,101930.0,101920.0,0.196215]
[1737992160292,0.3608,101930.0,101910.0,0.36927735]
[1737992160593,0.557022,101920.0,101910.0,0.00014702]
[1737992160890,0.632422,101920.0,101910.0,0.00014702]
[1737992161089,0.271622,101920.0,101910.0,0.19638802]
[1737992161388,0.632422,101920.0,101910.0,0.00799702]
[1737992162084,0.713522,101920.0,101910.0,0.00799702]
[1737992162284,0.74080283,101920.0,101900.0,0.00848199]
[1737992162479,0.196261,101900.0,101890.0,0.00147197]
[1737992162682,0.557061,101900.0,101890.0,0.19775197]
[1737992162897,0.3608,101900.0,101890.0,1.69775197]
[1737992163096,0.272249,101910.0,101900.0,0.196261]
[1737992163596,0.196261,101900.0,101890.0,1.69789099]
[1737992163791,0.557061,101900.0,101890.0,1.70574099]
[1737992164183,0.557061,101900.0,101890.0,1.50927363]
[1737992164684,0.557061,101900.0,101890.0,1.51771568]
[1737992164886,0.557061,101900.0,101890.0,0.01771568]
[1737992165286,0.557061,101900.0,101890.0,0.01643907]
[1737992165887,0.557061,101900.0,101890.0,0.00858907]
[1737992166082,0.557061,101900.0,101890.0,0.20486907]
[1737992166288,0.196244,101910.0,101900.0,0.196247]
[1737992166582,0.557044,101910.0,101900.0,0.196247]
[1737992166891,0.196244,101910.0,101900.0,0.196247]
[1737992167188,0.43634702,101920.0,101910.0,0.196241]
[1737992167390,0.36094702,101920.0,101910.0,1.696241]
[1737992167592,0.00014702,101920.0,101910.0,1.91974383]
[1737992168792,0.00014702,101920.0,101910.0,1.696241]
[1737992169097,0.55716902,101920.0,101910.0,1.5]
[1737992169287,0.196241,101910.0,101900.0,0.196257]
[1737992169482,0.3608,101910.0,101890.0,0.00858907]
[1737992169687,0.3608,101910.0,101890.0,1.70485807]
[1737992169688,0.557061,101900.0,101890.0,1.70485807]
[1737992169888,0.557061,101900.0,101890.0,1.50858907]
[1737992170089,0.557061,101900.0,101890.0,0.00858907]
[1737992170286,0.638761,101900.0,101890.0,0.00014702]
[1737992170589,0.7425,101900.0,101870.0,1.696312]
[1737992170787,0.557099,101880.0,101870.0,1.50830502]
[1737992170988,0.557099,101880.0,101870.0,1.70462302]
[1737992171191,0.557099,101880.0,101870.0,1.50830502]
[1737992171893,0.00014702,101890.0,101880.0,0.196299]
[1737992172191,0.55722702,101890.0,101880.0,0.196299]
[1737992172390,0.196299,101880.0,101870.0,1.70461502]
[1737992172597,0.557099,101880.0,101870.0,1.70461502]
[1737992172794,0.557099,101880.0,101870.0,0.00830502]
[1737992172993,0.3608,101880.0,101860.0,0.00161924]
[1737992173199,0.3608,101870.0,101860.0,0.19648502]
[1737992173396,0.3608,101870.0,101860.0,1.69648502]
[1737992173701,0.562118,101870.0,101860.0,1.69648502]
[1737992173998,0.562118,101870.0,101860.0,1.70465074]
[1737992174593,0.560118,101870.0,101860.0,1.70465074]
[1737992175595,0.58956729,101870.0,101860.0,1.70465074]
[1737992176612,0.58956729,101870.0,101860.0,1.50831274]
[1737992176807,0.58956729,101870.0,101840.0,0.00785]
[1737992176808,0.196357,101850.0,101840.0,0.00785]
[1737992177103,0.917957,101850.0,101840.0,0.00785]
[1737992177598,0.049085,101860.0,101850.0,0.196357]
[1737992177599,0.196342,101860.0,101850.0,0.196357]
[1737992177803,0.74817629,101870.0,101840.0,0.417743]
[1737992177998,0.55199631,101870.0,101840.0,0.05709002]
[1737992178310,0.58971931,101870.0,101860.0,0.196338]
[1737992178814,0.03259631,101870.0,101860.0,0.196338]
[1737992179603,0.39339631,101870.0,101840.0,0.20436502]
[1737992179798,0.917957,101850.0,101840.0,0.00799702]
[1737992180208,0.995657,101850.0,101840.0,0.00799702]
[1737992180612,0.995657,101850.0,101840.0,0.00014702]
[1737992181420,0.196395,101830.0,101820.0,1.6978879]
[1737992181611,0.557195,101830.0,101820.0,1.6978879]
[1737992182011,0.557195,101830.0,101820.0,1.7062923]
[1737992183010,0.3608,101830.0,101820.0,1.7062923]
[1737992183618,0.557195,101830.0,101820.0,1.5098773]
[1737992184010,0.557195,101830.0,101820.0,1.7062923]
[1737992184718,0.557195,101830.0,101820.0,1.5148773]
[1737992185111,0.557195,101830.0,101820.0,1.7112923]
[1737992185714,0.558195,101830.0,101820.0,1.7062923]
[1737992186413,0.558195,101830.0,101820.0,0.2062923]
[1737992186813,0.558195,101830.0,101820.0,1.5108773]
[1737992187013,0.558195,101830.0,101820.0,1.7072923]
[1737992187215,0.3618,101830.0,101820.0,1.7072923]
[1737992187413,0.001,101830.0,101820.0,1.7072923]
[1737992187617,0.558195,101830.0,101820.0,1.7072923]
[1737992187821,0.558195,101830.0,101820.0,1.5108773]
[1737992188123,0.558195,101830.0,101820.0,0.0108773]
[1737992190719,0.558195,101830.0,101820.0,0.2072923]
[1737992191123,0.001,101830.0,101820.0,0.69450307]
[1737992191327,0.3608,101860.0,101850.0,0.196357]
[1737992191522,0.02944929,101870.0,101860.0,0.196338]
[1737992191724,0.02944929,101870.0,101860.0,0.68354877]
[1737992192028,0.58656729,101870.0,101860.0,0.196338]
[1737992192322,0.196362,101850.0,101840.0,0.19637]
[1737992192823,0.53630077,101850.0,101840.0,1.5]
[1737992193024,0.196395,101830.0,101820.0,0.0098773]
[1737992193223,0.557195,101830.0,101820.0,0.0098773]
[1737992193430,0.557195,101830.0,101820.0,0.2062923]
[1737992193622,0.557195,101830.0,101820.0,0.0098773]
[1737992194129,0.557195,101830.0,101820.0,0.2062923]
[1737992194721,0.557195,101830.0,101820.0,0.0098773]
[1737992195022,0.917995,101830.0,101820.0,0.0098773]
[1737992195727,1.04440577,101830.0,101820.0,0.0014729]
[1737992196118,0.917995,101830.0,101820.0,0.0014729]
[1737992196315,0.917995,101830.0,101820.0,0.0024729]
[1737992196824,0.36094702,101840.0,101820.0,0.12888367]
[1737992197027,0.55733402,101840.0,101830.0,0.196395]
[1737992197415,0.36094702,101840.0,101830.0,0.32280577]
[1737992197719,0.19652302,101840.0,101830.0,0.557195]
[1737992198223,0.19652302,101840.0,101830.0,0.196395]
[1737992198927,0.00014702,101840.0,101830.0,0.32280577]
[1737992199128,0.00214702,101840.0,101830.0,0.39860577]
[1737992199720,0.00214702,101840.0,101830.0,0.75940577]
[1737992199917,0.02944929,101870.0,101860.0,0.196338]
[1737992200120,0.02944929,101870.0,101860.0,0.68354877]
[1737992200325,0.39024929,101870.0,101850.0,0.4352]
[1737992200626,0.196338,101860.0,101850.0,1.770747]
[1737992201224,0.196338,101860.0,101850.0,2.131547]